Workbook

Sheet Área 2 Infantil
A7: Federação Portuguesa de Shorinji Kempo
A8: XXII Taikai Nacional 11/03/2012 Salvaterra de Magos
A10: Área praticável Nº 2 Infantil
C13: Juiz 1 | F13: Juiz 2 | I13: Juiz 3 | L13: Juiz 4 | O13: Juiz 5
A14: Nº | B14: Nomes: | C14: Precisão | D14: Compo. | E14: TOTAL: | F14: Precisão | G14: Compo. | H14: TOTAL: | I14: Precisão | J14: Compo. | K14: TOTAL: | L14: Precisão | M14: Compo. | N14: TOTAL: | O14: Precisão | P14: Compo. | Q14: TOTAL: | R14: Pontuação Final:
A15: 1 | B15: Guilherme Luz / Carolina Luz | E15: =SUM(C15:D15) -> 0 | H15: =SUM(F15:G15) -> 0 | K15: =SUM(I15:J15) -> 0 | N15: =SUM(L15:M15) -> 0 | Q15: =SUM(O15:P15) -> 0 | R15: =(SUM(C15,H15,K15,N15,Q15)-MIN(C15,H15,K15,N15,Q15)-MAX(E15,H15,K15,N15,Q15)) -> 0
A16: 2 | B16: Miguel Reis / Tiago Paiva | E16: 0 | H16: 0 | K16: 0 | N16: 0 | Q16: 0 | R16: =(SUM(C16,H16,K16,N16,Q16)-MIN(C16,H16,K16,N16,Q16)-MAX(E16,H16,K16,N16,Q16)) -> 0
A17: 3 | B17: Tomás Silva / André Felizardo | E17: 0 | H17: 0 | K17: 0 | N17: 0 | Q17: 0 | R17: 0
A18: 4 | B18: Carolina Fonseca / André Canas | E18: 0 | H18: 0 | K18: 0 | N18: 0 | Q18: 0 | R18: 0
A19: 5 | B19: Diogo Pedro / Hugo Ramalho | E19: 0 | H19: 0 | K19: 0 | N19: 0 | Q19: 0 | R19: 0
A20: 6 | B20: Barbara Soares / Duarte Ramalho | E20: 0 | H20: 0 | K20: 0 | N20: 0 | Q20: 0 | R20: 0
A21: 7 | B21: Ricardo Estebinha / Leandro Calixto | E21: 0 | H21: 0 | K21: 0 | N21: 0 | Q21: 0 | R21: 0
A22: 8 | B22: Gonçalo Simão / Duarte Reis | E22: 0 | H22: 0 | K22: 0 | N22: 0 | Q22: 0 | R22: 0
A23: 9 | B23: Ricardo Andrónico / Filipe Figueiredo | E23: =SUM(C23:D23) -> 0 | H23: =SUM(F23:G23) -> 0 | K23: =SUM(I23:J23) -> 0 | N23: =SUM(L23:M23) -> 0 | Q23: =SUM(O23:P23) -> 0 | R23: 0
A24: 10 | B24: Gonçalo Alves / Daniel Almeida | E24: 0 | H24: 0 | K24: 0 | N24: 0 | Q24: 0 | R24: 0
A25: 11 | B25: Ricardo Morgado / Filipe Bonito | E25: 0 | H25: 0 | K25: 0 | N25: 0 | Q25: 0 | R25: 0
A26: 12 | B26: Ana Matias / Ana Silva | E26: 0 | H26: 0 | K26: 0 | N26: 0 | Q26: 0 | R26: 0
A27: 13 | B27: Samuel Anica / Rodrigo Madeira | E27: 0 | H27: 0 | K27: 0 | N27: 0 | Q27: 0 | R27: 0
A28: 14 | B28: Afonso Guerra / Madalena Soeiro | E28: 0 | H28: 0 | K28: 0 | N28: 0 | Q28: 0 | R28: 0
A29: 15 | B29: Catarina Almeida / Diogo Fragoso | E29: 0 | H29: 0 | K29: 0 | N29: 0 | Q29: 0 | R29: 0
A30: 16 | B30: Inês Esperança / Rita Clemente Lopes | E30: 0 | H30: 0 | K30: 0 | N30: 0 | Q30: 0 | R30: 0
A31: 17 | B31: Rodrigo Bargão Henriques / Miguel C Lopes | E31: 0 | H31: 0 | K31: 0 | N31: 0 | Q31: 0 | R31: 0
A32: 18 | B32: Gabriel Henriques / Carolina Araújo Albuquerque | E32: 0 | H32: 0 | K32: 0 | N32: 0 | Q32: 0 | R32: 0
A33: 19 | B33: Tomás Bargão Henriques / Hugo Fontan | E33: 0 | H33: 0 | K33: 0 | N33: 0 | Q33: 0 | R33: 0
A34: 20 | B34: Luis Esperança / Margarida Ribeiro | E34: =SUM(C34:D34) -> 0 | H34: =SUM(F34:G34) -> 0 | K34: =SUM(I34:J34) -> 0 | N34: =SUM(L34:M34) -> 0 | Q34: =SUM(O34:P34) -> 0 | R34: 0
A35: 21 | B35: Ricardo Filipe Silva / Tomás Lobo Gonçalves | E35: 0 | H35: 0 | K35: 0 | N35: 0 | Q35: 0 | R35: 0
A36: 37 | B36: Pedro Ribeiro / Tiago Ruhle | E36: 0 | H36: 0 | K36: 0 | N36: 0 | Q36: 0 | R36: =(SUM(C36,H36,K36,N36,Q36)-MIN(C36,H36,K36,N36,Q36)-MAX(C36,H36,K36,N36,Q36)) -> 0

Sheet Área 1 Infantil
A7: Federação Portuguesa de Shorinji Kempo
A8: XXII Taikai Nacional 11/03/2012 Salvaterra de Magos
A10: Área praticável Nº 1 Infantil
A13: Nº | B13: Nomes: | C13: Precisão | D13: Compo. | E13: TOTAL: | F13: Precisão | G13: Compo. | H13: TOTAL: | I13: Precisão | J13: Compo. | K13: TOTAL: | L13: Precisão | M13: Compo. | N13: TOTAL: | O13: Precisão | P13: Compo. | Q13: TOTAL: | R13: Pontuação Final:
A14: 25 | B14: João Paiva | C14: 40 | D14: 38 | E14: =SUM(C14:D14) -> 78 | F14: 52 | G14: 36 | H14: =SUM(F14:G14) -> 88 | I14: 52 | J14: 35 | K14: =SUM(I14:J14) -> 87 | L14: 52 | M14: 36 | N14: =SUM(L14:M14) -> 88 | O14: 40 | P14: 40 | Q14: =SUM(O14:P14) -> 80 | R14: =(SUM(E14,H14,K14,N14,Q14)-MIN(E14,H14,K14,N14,Q14)-MAX(E14,H14,K14,N14,Q14)) -> 255 | S14: 250 | T14: Penalização
A15: 22 | B15: Guilherme Abreu | C15: 50 | D15: 30 | E15: 80 | F15: 42 | G15: 29 | H15: 71 | I15: 47 | J15: 33 | K15: 80 | L15: 43 | M15: 35 | N15: 78 | O15: 40 | P15: 35 | Q15: 75 | R15: 233
A16: 31 | B16: Carolina Gomes / Sara Costa | C16: 43 | D16: 35 | E16: 78 | F16: 42 | G16: 32 | H16: 74 | I16: 46 | J16: 32 | K16: 78 | L16: 44 | M16: 35 | N16: 79 | O16: 37 | P16: 35 | Q16: 72 | R16: 230
A17: 27 | B17: Miguel Marçal | C17: 42 | D17: 33 | E17: 75 | F17: 42 | G17: 31 | H17: 73 | I17: 47 | J17: 34 | K17: 81 | L17: 43 | M17: 31 | N17: 74 | O17: 40 | P17: 39 | Q17: 79 | R17: 228
A18: 30 | B18: Alexandra Felician | C18: 40 | D18: 32 | E18: 72 | F18: 42 | G18: 31 | H18: 73 | I18: 49 | J18: 33 | K18: 82 | L18: 43 | M18: 34 | N18: 77 | O18: 38 | P18: 34 | Q18: 72 | R18: 222
A19: 26 | B19: Bruno Carvalho | C19: 40 | D19: 30 | E19: 70 | F19: 40 | G19: 30 | H19: 70 | I19: 48 | J19: 34 | K19: 82 | L19: 44 | M19: 34 | N19: 78 | O19: 31 | P19: 40 | Q19: 71 | R19: 219
A20: 23 | B20: Gonçalo Soveral | C20: 40 | D20: 30 | E20: 70 | F20: 40 | G20: 30 | H20: 70 | I20: 46 | J20: 33 | K20: 79 | L20: 41 | M20: 31 | N20: 72 | O20: 39 | P20: 32 | Q20: 71 | R20: 213 | S20: =C20+F20+I20+L20+O20 -> 206 | T20: Precisão
A21: 24 | B21: Luisa Monteiro | C21: 38 | D21: 33 | E21: 71 | F21: 40 | G21: 30 | H21: 70 | I21: 47 | J21: 33 | K21: 80 | L21: 39 | M21: 33 | N21: 72 | O21: 35 | P21: 35 | Q21: 70 | R21: 213 | S21: =C21+F21+I21+L21+O21 -> 199 | T21: Precisão
A22: 29 | B22: Afonso Carvalho | C22: 40 | D22: 30 | E22: 70 | F22: 40 | G22: 30 | H22: 70 | I22: 48 | J22: 34 | K22: 82 | L22: 40 | M22: 31 | N22: 71 | O22: 40 | P22: 30 | Q22: 70 | R22: 211 | S22: 206 | T22: Penalização
C23: Juiz 1 | F23: Juiz 2 | I23: Juiz 3 | L23: Juiz 4 | O23: Juiz 5
A26: 32 | B26: Dan-tai-Embu | C26: 43 | D26: 32 | E26: =SUM(C26:D26) -> 75 | F26: 42 | G26: 30 | H26: =SUM(F26:G26) -> 72 | I26: 47 | J26: 32 | K26: =SUM(I26:J26) -> 79 | L26: 42 | M26: 37 | N26: =SUM(L26:M26) -> 79 | O26: 40 | P26: 35 | Q26: =SUM(O26:P26) -> 75 | R26: =(SUM(E26,H26,K26,N26,Q26)-MIN(E26,H26,K26,N26,Q26)-MAX(E26,H26,K26,N26,Q26)) -> 229
A27: 33 | B27: Dan-tai-Embu | C27: 40 | D27: 30 | E27: 70 | F27: 43 | G27: 30 | H27: 73 | I27: 46 | J27: 33 | K27: 79 | L27: 40 | M27: 37 | N27: 77 | O27: 40 | P27: 33 | Q27: 73 | R27: 223 | S27: 218 | T27: Penalização
A30: 34 | B30: Rui Fonseca / Pedro Henriques / Tiago Pedro | C30: 45 | D30: 35 | E30: =SUM(C30:D30) -> 80 | F30: 46 | G30: 32 | H30: =SUM(F30:G30) -> 78 | I30: 50 | J30: 35 | K30: =SUM(I30:J30) -> 85 | L30: 49 | M30: 30 | N30: =SUM(L30:M30) -> 79 | O30: 39 | P30: 39 | Q30: =SUM(O30:P30) -> 78 | R30: =(SUM(E30,H30,K30,N30,Q30)-MIN(E30,H30,K30,N30,Q30)-MAX(E30,H30,K30,N30,Q30)) -> 237 | S30: 227 | T30: Penalização
A31: 41 | B31: Miguel Horta / Miguel Montes | C31: 54 | D31: 36 | E31: =SUM(C31:D31) -> 90 | F31: 50 | G31: 33 | H31: =SUM(F31:G31) -> 83 | I31: 54 | J31: 36 | K31: =SUM(I31:J31) -> 90 | L31: 47 | M31: 37 | N31: =SUM(L31:M31) -> 84 | O31: 43 | P31: 40 | Q31: =SUM(O31:P31) -> 83 | R31: =(SUM(E31,H31,K31,N31,Q31)-MIN(E31,H31,K31,N31,Q31)-MAX(E31,H31,K31,N31,Q31)) -> 257
A32: 40 | B32: José Filipe Cruz / Nazariy / Leonardo Costa | C32: 50 | D32: 35 | E32: 85 | F32: 47 | G32: 33 | H32: 80 | I32: 53 | J32: 36 | K32: 89 | L32: 44 | M32: 37 | N32: 81 | O32: 42 | P32: 41 | Q32: 83 | R32: 249
A33: 36 | B33: Ana ribeiro / Ana Feteira | C33: 43 | D33: 33 | E33: 76 | F33: 49 | G33: 36 | H33: 85 | I33: 54 | J33: 35 | K33: 89 | L33: 43 | M33: 38 | N33: 81 | O33: 41 | P33: 41 | Q33: 82 | R33: 248 | T33: 2º Lugar
A34: 35 | B34: Mihaita Medre / Francisco Onofre | C34: 47 | D34: 35 | E34: 82 | F34: 49 | G34: 35 | H34: 84 | I34: 53 | J34: 36 | K34: 89 | L34: 45 | M34: 36 | N34: 81 | O34: 40 | P34: 38 | Q34: 78 | R34: 247
A35: 39 | B35: Natacha Claudino / Inês Jorge / João Reininho | C35: 49 | D35: 34 | E35: 83 | F35: 41 | G35: 31 | H35: 72 | I35: 48 | J35: 32 | K35: 80 | L35: 45 | M35: 35 | N35: 80 | O35: 40 | P35: 37 | Q35: 77 | R35: 237
A36: 38 | B36: Diogo Quaresma | C36: 46 | D36: 34 | E36: 80 | F36: 42 | G36: 28 | H36: 70 | I36: 49 | J36: 33 | K36: 82 | L36: 42 | M36: 37 | N36: 79 | O36: 38 | P36: 34 | Q36: 72 | R36: 231

Sheet Área 2 Adulto
A7: Federação Portuguesa de Shorinji Kempo
A8: XXII Taikai Nacional 11/03/2012 Salvaterra de Magos
A10: Área praticável Nº 2 Adulto
C13: Juiz 1 | F13: Juiz 2 | I13: Juiz 3 | L13: Juiz 4 | O13: Juiz 5
A14: Nº | B14: Nomes: | C14: Precisão | D14: Compo. | E14: TOTAL: | F14: Precisão | G14: Compo. | H14: TOTAL: | I14: Precisão | J14: Compo. | K14: TOTAL: | L14: Precisão | M14: Compo. | N14: TOTAL: | O14: Precisão | P14: Compo. | Q14: TOTAL: | R14: Pontuação Final:
A15: 1 | B15: Adélio Silva /Francisco Melo | E15: =SUM(C15:D15) -> 0 | H15: =SUM(F15:G15) -> 0 | K15: =SUM(I15:J15) -> 0 | N15: =SUM(L15:M15) -> 0 | Q15: =SUM(O15:P15) -> 0 | R15: =(SUM(E15,H15,K15,N15,Q15)-MIN(E15,H15,K15,N15,Q15)-MAX(E15,H15,K15,N15,Q15)) -> 0
A16: 2 | B16: Rui Finuras / Diogo Miguel Martins | E16: 0 | H16: 0 | K16: 0 | N16: 0 | Q16: 0 | R16: 0
A17: 4 | B17: Patricia Abreu / Rafael Abreu | E17: 0 | H17: 0 | K17: 0 | N17: 0 | Q17: 0 | R17: 0
A18: 6 | B18: João Neves / Francisco Matos | E18: 0 | H18: 0 | K18: 0 | N18: 0 | Q18: 0 | R18: 0
A19: 7 | B19: Sara Claro / Pedro Palma | E19: 0 | H19: 0 | K19: 0 | N19: 0 | Q19: 0 | R19: 0
A20: 9 | B20: Tatiana Bonito / Joana Firmino | E20: 0 | H20: 0 | K20: 0 | N20: 0 | Q20: 0 | R20: 0
A21: 10 | B21: Nélia Santos / Tiago Correia | E21: 0 | H21: 0 | K21: 0 | N21: 0 | Q21: 0 | R21: 0
A22: 11 | B22: Diogo Santos / Diogo Costa / Cátia santos | E22: 0 | H22: 0 | K22: 0 | N22: 0 | Q22: 0 | R22: 0
A23: 12 | B23: Ramiro Nunes / Luis Pereira | E23: 0 | H23: 0 | K23: 0 | N23: 0 | Q23: 0 | R23: 0
A25: Embu Solo categoria Minarai
A26: 3 | B26: Solange Almeida / Teresa Gonçalves | E26: =SUM(C26:D26) -> 0 | H26: =SUM(F26:G26) -> 0 | K26: =SUM(I26:J26) -> 0 | N26: =SUM(L26:M26) -> 0 | Q26: =SUM(O26:P26) -> 0 | R26: =(SUM(E26,H26,K26,N26,Q26)-MIN(E26,H26,K26,N26,Q26)-MAX(E26,H26,K26,N26,Q26)) -> 0
A27: 8 | B27: Isabel Benedito | E27: 0 | H27: 0 | K27: 0 | N27: 0 | Q27: 0 | R27: 0
A28: 13 | B28: Ricardo Gonçalves | E28: 0 | H28: 0 | K28: 0 | N28: 0 | Q28: 0 | R28: 0
A29: 14 | B29: Miguel Costa | E29: 0 | H29: 0 | K29: 0 | N29: 0 | Q29: 0 | R29: 0
A30: 5 | B30: Liliana Silva | E30: 0 | H30: 0 | K30: 0 | N30: 0 | Q30: 0 | R30: 0
A32: Embu Solo categoria Kyu
A33: 15 | B33: Filipe Ferreira | E33: 0 | H33: 0 | K33: 0 | N33: 0 | Q33: 0 | R33: 0
A35: Embu Solo categoria 1º Dan
A36: 17 | B36: Acácio Soares | E36: 0 | H36: 0 | K36: 0 | N36: 0 | Q36: 0 | R36: 0
A37: 18 | B37: Ana Ribeiro | E37: =SUM(C37:D37) -> 0 | H37: =SUM(F37:G37) -> 0 | K37: =SUM(I37:J37) -> 0 | N37: =SUM(L37:M37) -> 0 | Q37: =SUM(O37:P37) -> 0 | R37: =(SUM(E37,H37,K37,N37,Q37)-MIN(E37,H37,K37,N37,Q37)-MAX(E37,H37,K37,N37,Q37)) -> 0
A39: Embu Solo categoria 3º Dan
A40: 16 | B40: Luis Ganho | E40: =SUM(C40:D40) -> 0 | H40: =SUM(F40:G40) -> 0 | K40: =SUM(I40:J40) -> 0 | N40: =SUM(L40:M40) -> 0 | Q40: =SUM(O40:P40) -> 0 | R40: =(SUM(E40,H40,K40,N40,Q40)-MIN(E40,H40,K40,N40,Q40)-MAX(E40,H40,K40,N40,Q40)) -> 0

Sheet Área 1 Adulto
A7: Federação Portuguesa de Shorinji Kempo
A8: XXII Taikai Nacional 11/03/2012 Salvaterra de Magos
A10: Área praticável Nº 1 Adulto
C13: Juiz 1 | F13: Juiz 2 | I13: Juiz 3 | L13: Juiz 4 | O13: Juiz 5
A14: Nº | B14: Nomes: | C14: Precisão | D14: Compo. | E14: TOTAL: | F14: Precisão | G14: Compo. | H14: TOTAL: | I14: Precisão | J14: Compo. | K14: TOTAL: | L14: Precisão | M14: Compo. | N14: TOTAL: | O14: Precisão | P14: Compo. | Q14: TOTAL: | R14: Pontuação Final:
A15: 26 | B15: Sofia Martins / Tania Santos | C15: 45 | D15: 32 | E15: =SUM(C15:D15) -> 77 | F15: 46 | G15: 32 | H15: =SUM(F15:G15) -> 78 | I15: 40 | J15: 37 | K15: =SUM(I15:J15) -> 77 | L15: 42 | M15: 35 | N15: =SUM(L15:M15) -> 77 | O15: 41 | P15: 34 | Q15: =SUM(O15:P15) -> 75 | R15: =(SUM(E15,H15,K15,N15,Q15)-MIN(E15,H15,K15,N15,Q15)-MAX(E15,H15,K15,N15,Q15)) -> 231
A16: 29 | B16: Francisco Paulo / David Ribeiro / Miguel Figueiredo | C16: 43 | D16: 30 | E16: 73 | F16: 45 | G16: 30 | H16: 75 | I16: 40 | J16: 35 | K16: 75 | L16: 39 | M16: 31 | N16: 70 | O16: 40 | P16: 32 | Q16: 72 | R16: 220
A17: 25 | B17: David Figueiredo / David Ruha | C17: 44 | D17: 28 | E17: 72 | F17: 43 | G17: 30 | H17: 73 | I17: 39 | J17: 32 | K17: 71 | L17: 39 | M17: 34 | N17: 73 | O17: 40 | P17: 33 | Q17: 73 | R17: 218 | T17: Sintra
A18: 20 | B18: Andreia Ferreira/Pedro Domingues | C18: 43 | D18: 32 | E18: 75 | F18: 41 | G18: 30 | H18: 71 | I18: 42 | J18: 31 | K18: 73 | L18: 39 | M18: 32 | N18: 71 | O18: 41 | P18: 32 | Q18: 73 | R18: 217
A19: 24 | B19: Raquel Santos / Maria Varela | C19: 43 | D19: 28 | E19: 71 | F19: 43 | G19: 29 | H19: 72 | I19: 40 | J19: 33 | K19: 73 | L19: 39 | M19: 34 | N19: 73 | O19: 38 | P19: 32 | Q19: 70 | R19: 216
A20: 23 | B20: Miguel Abreu / Hugo Madeira | C20: 45 | D20: 31 | E20: 76 | F20: 42 | G20: 26 | H20: 68 | I20: 40 | J20: 33 | K20: 73 | L20: 38 | M20: 29 | N20: 67 | O20: 41 | P20: 33 | Q20: 74 | R20: 215
A21: 28 | B21: Catarina Reininho / Daniela Camacho | C21: 43 | D21: 28 | E21: 71 | F21: 41 | G21: 28 | H21: 69 | I21: 40 | J21: 34 | K21: 74 | L21: 39 | M21: 31 | N21: 70 | O21: 40 | P21: 32 | Q21: 72 | R21: 213
A22: 30 | B22: João Simões / João Feteira | C22: 43 | D22: 28 | E22: 71 | F22: 42 | G22: 26 | H22: 68 | I22: 40 | J22: 35 | K22: 75 | L22: 38 | M22: 30 | N22: 68 | O22: 40 | P22: 32 | Q22: 72 | R22: 211
A23: 21 | B23: Cristiano Pereira/Inês Falcão/João Silva | C23: 40 | D23: 26 | E23: 66 | F23: 43 | G23: 27 | H23: 70 | I23: 37 | J23: 33 | K23: 70 | L23: 41 | M23: 29 | N23: 70 | O23: 40 | P23: 32 | Q23: 72 | R23: 210 | S23: 205 Penalização
A24: 22 | B24: Ruben Aljustrel/José Basílo | C24: 41 | D24: 27 | E24: 68 | F24: 41 | G24: 28 | H24: 69 | I24: 37 | J24: 35 | K24: 72 | L24: 36 | M24: 31 | N24: 67 | O24: 40 | P24: 32 | Q24: 72 | R24: 209
A25: 27 | B25: Sara Cunha / Bruno Franco | C25: 40 | D25: 28 | E25: 68 | F25: 41 | G25: 26 | H25: 67 | I25: 35 | J25: 35 | K25: 70 | L25: 35 | M25: 31 | N25: 66 | O25: 38 | P25: 32 | Q25: 70 | R25: 205
A26: 19 | B26: Manuel João Fonseca/Miguel Santana | C26: 36 | D26: 24 | E26: 60 | F26: 39 | G26: 24 | H26: 63 | I26: 35 | J26: 30 | K26: 65 | L26: 36 | M26: 31 | N26: 67 | O26: 40 | P26: 32 | Q26: 72 | R26: 195
A28: Categoria Yudansha 1º Dan Adulto
A29: 36 | B29: Cláudio Leal / Jéssica Ferreira | C29: 44 | D29: 29 | E29: =SUM(C29:D29) -> 73 | F29: 45 | G29: 32 | H29: =SUM(F29:G29) -> 77 | I29: 42 | J29: 38 | K29: =SUM(I29:J29) -> 80 | L29: 43 | M29: 33 | N29: =SUM(L29:M29) -> 76 | O29: 44 | P29: 35 | Q29: =SUM(O29:P29) -> 79 | R29: =(SUM(E29,H29,K29,N29,Q29)-MIN(E29,H29,K29,N29,Q29)-MAX(E29,H29,K29,N29,Q29)) -> 232
A30: 34 | B30: Maria Butzke / João Reis | C30: 45 | D30: 31 | E30: =SUM(C30:D30) -> 76 | F30: 44 | G30: 27 | H30: =SUM(F30:G30) -> 71 | I30: 39 | J30: 36 | K30: =SUM(I30:J30) -> 75 | L30: 40 | M30: 32 | N30: =SUM(L30:M30) -> 72 | O30: 41 | P30: 33 | Q30: =SUM(O30:P30) -> 74 | R30: =(SUM(E30,H30,K30,N30,Q30)-MIN(E30,H30,K30,N30,Q30)-MAX(E30,H30,K30,N30,Q30)) -> 221
A31: 33 | B31: Margarida Nascimento / Miguel Nascimento | C31: 43 | D31: 28 | E31: =SUM(C31:D31) -> 71 | F31: 41 | G31: 27 | H31: =SUM(F31:G31) -> 68 | I31: 38 | J31: 34 | K31: =SUM(I31:J31) -> 72 | L31: 38 | M31: 32 | N31: =SUM(L31:M31) -> 70 | O31: 43 | P31: 35 | Q31: =SUM(O31:P31) -> 78 | R31: =(SUM(E31,H31,K31,N31,Q31)-MIN(E31,H31,K31,N31,Q31)-MAX(E31,H31,K31,N31,Q31)) -> 213
A32: 31 | B32: João Rodrigues / Patricia Brito | C32: 40 | D32: 29 | E32: =SUM(C32:D32) -> 69 | F32: 38 | G32: 25 | H32: =SUM(F32:G32) -> 63 | I32: 39 | J32: 34 | K32: =SUM(I32:J32) -> 73 | L32: 39 | M32: 30 | N32: =SUM(L32:M32) -> 69 | O32: 38 | P32: 33 | Q32: =SUM(O32:P32) -> 71 | R32: =(SUM(E32,H32,K32,N32,Q32)-MIN(E32,H32,K32,N32,Q32)-MAX(E32,H32,K32,N32,Q32)) -> 209
A34: Categoria Yudansha 2º Dan Adulto
A35: 37 | B35: Paulo Nogueira Lopes / João Paulo Costa | C35: 48 | D35: 33 | E35: =SUM(C35:D35) -> 81 | F35: 46 | G35: 32 | H35: =SUM(F35:G35) -> 78 | I35: 40 | J35: 40 | K35: =SUM(I35:J35) -> 80 | L35: 40 | M35: 32 | N35: =SUM(L35:M35) -> 72 | O35: 42 | P35: 35 | Q35: =SUM(O35:P35) -> 77 | R35: =(SUM(E35,H35,K35,N35,Q35)-MIN(E35,H35,K35,N35,Q35)-MAX(E35,H35,K35,N35,Q35)) -> 235 | T35: Sintra
A36: 32 | B36: Paulo Pedro / Sivia Costa | C36: 44 | D36: 29 | E36: =SUM(C36:D36) -> 73 | F36: 43 | G36: 31 | H36: =SUM(F36:G36) -> 74 | I36: 40 | J36: 37 | K36: =SUM(I36:J36) -> 77 | L36: 38 | M36: 32 | N36: =SUM(L36:M36) -> 70 | O36: 43 | P36: 35 | Q36: =SUM(O36:P36) -> 78 | R36: =(SUM(E36,H36,K36,N36,Q36)-MIN(E36,H36,K36,N36,Q36)-MAX(E36,H36,K36,N36,Q36)) -> 224 | T36: Sintra
A37: 35 | B37: Ana Monteiro /Nélio Ferreira | C37: 43 | D37: 29 | E37: =SUM(C37:D37) -> 72 | F37: 43 | G37: 30 | H37: =SUM(F37:G37) -> 73 | I37: 40 | J37: 40 | K37: =SUM(I37:J37) -> 80 | L37: 39 | M37: 31 | N37: =SUM(L37:M37) -> 70 | O37: 42 | P37: 35 | Q37: =SUM(O37:P37) -> 77 | R37: =(SUM(E37,H37,K37,N37,Q37)-MIN(E37,H37,K37,N37,Q37)-MAX(E37,H37,K37,N37,Q37)) -> 222
